bitfinex/quotes_BTCUSD_20250709
["timestamp","ask_amount","ask_price","bid_price","bid_amount"]
[1752073271571,0.12320207,109070.0,109060.0,1.12366685]
[1752073271773,0.18297024,109070.0,109060.0,1.13155569]
[1752073271986,0.19213849,109070.0,109060.0,1.13155569]
[1752073272385,0.17380207,109070.0,109060.0,1.13155569]
[1752073272592,0.16463407,109070.0,109060.0,1.13155569]
[1752073272825,0.13056632,109070.0,109060.0,1.13155569]
[1752073273028,0.13973407,109070.0,109060.0,1.13155569]
[1752073273251,0.09569866,109070.0,109060.0,1.13155569]
[1752073273678,0.09569866,109070.0,109060.0,1.51440629]
[1752073274125,0.09569866,109070.0,109060.0,1.14609654]
[1752073275869,0.09569866,109070.0,109060.0,1.51440629]
[1752073276131,0.09569866,109070.0,109060.0,1.53990629]
[1752073276584,0.09569866,109070.0,109060.0,1.51440629]
[1752073276800,0.08569866,109070.0,109060.0,1.51440629]
[1752073278834,0.08569866,109070.0,109060.0,1.53990629]
[1752073279512,0.08569866,109070.0,109060.0,1.51440629]
[1752073279728,0.08569866,109070.0,109060.0,1.14609654]
[1752073281177,0.08569866,109070.0,109060.0,1.14593654]
[1752073282893,0.13399866,109070.0,109060.0,1.33622308]
[1752073283100,0.08569866,109070.0,109060.0,1.48474308]
[1752073284427,0.08169866,109070.0,109060.0,1.48474308]
[1752073284684,0.08656478,109070.0,109060.0,1.13135569]
[1752073284856,0.07739712,109070.0,109060.0,1.48474308]
[1752073285311,0.13486478,109070.0,109060.0,1.48474308]
[1752073285537,0.11076478,109070.0,109060.0,1.48474308]
[1752073285754,0.11076478,109070.0,109060.0,0.91449818]
[1752073285976,0.15320069,109070.0,109060.0,1.36214685]
[1752073286153,0.16236894,109070.0,109060.0,1.36214685]
[1752073286558,0.32740192,109070.0,109060.0,1.09472315]
[1752073286771,0.33657025,109070.0,109060.0,1.24312701]
[1752073286976,0.14403345,109070.0,109060.0,1.10385568]
[1752073287216,0.33657025,109070.0,109060.0,1.18395825]
[1752073287421,0.33657025,109070.0,109060.0,1.22478924]
[1752073287624,0.33657025,109070.0,109060.0,1.17585931]
[1752073287772,0.68995764,109070.0,109060.0,0.83486493]
[1752073287975,0.68078956,109070.0,109060.0,0.98478941]
[1752073288180,0.67162131,109070.0,109060.0,0.79223486]
[1752073288377,0.67162131,109070.0,109060.0,0.50235793]
[1752073288813,0.67162131,109070.0,109060.0,0.45345089]
[1752073289015,0.67162131,109070.0,109060.0,0.50238082]
[1752073289248,0.31823392,109070.0,109060.0,0.55238082]
[1752073289450,0.67162131,109070.0,109060.0,0.55238082]
[1752073289602,0.67162131,109070.0,109060.0,0.64381775]
[1752073289801,0.31823392,109070.0,109060.0,0.64381775]
[1752073290027,0.31823392,109070.0,109060.0,0.83637222]
[1752073290193,0.33657026,109070.0,109060.0,0.85471015]
[1752073290391,0.345738,109070.0,109060.0,0.86387891]
[1752073290604,0.345738,109070.0,109060.0,0.87304758]
[1752073291022,0.35490642,109070.0,109060.0,0.86387891]
[1752073291224,0.33657051,109070.0,109060.0,0.64381775]
[1752073291436,0.32740234,109070.0,109060.0,0.64381775]
[1752073292070,0.32740234,109070.0,109060.0,0.82720304]
[1752073292281,0.32740234,109070.0,109060.0,0.84554148]
[1752073293303,0.32740234,109070.0,109060.0,0.8363723]
[1752073293501,0.32740234,109070.0,109060.0,0.59381775]
[1752073293502,0.31823401,109070.0,109060.0,0.59381775]
[1752073293873,0.31823401,109070.0,109060.0,0.64381775]
[1752073294128,0.6716214,109070.0,109060.0,0.59381775]
[1752073294364,0.6716214,109070.0,109060.0,0.64381775]
[1752073294852,0.6716214,109070.0,109060.0,0.84554148]
[1752073295049,0.31823401,109070.0,109060.0,0.84554148]
[1752073295229,0.32740218,109070.0,109060.0,0.81387941]
[1752073295463,0.15320145,109070.0,109060.0,0.87304808]
[1752073295657,0.16236978,109070.0,109060.0,0.87304808]
[1752073296295,0.34573825,109070.0,109060.0,0.87304808]
[1752073296510,0.35490667,109070.0,109060.0,0.86387941]
[1752073296717,0.32740234,109070.0,109060.0,0.83637213]
[1752073297336,0.07739712,109070.0,109060.0,1.35641711]
[1752073297552,0.08656495,109070.0,109060.0,1.35641711]
[1752073297762,0.07739712,109070.0,109060.0,1.35641711]
[1752073297930,0.07739712,109070.0,109060.0,1.50989489]
[1752073298414,0.07739712,109070.0,109060.0,1.53744089]
[1752073298641,0.002,109090.0,109060.0,1.8633216]
[1752073298869,0.002,109090.0,109080.0,1.67206232]
[1752073299090,0.002,109090.0,109080.0,2.00966369]
[1752073299991,0.002,109090.0,109080.0,2.00321618]
[1752073300231,0.00212812,109090.0,109080.0,2.00321618]
[1752073301093,0.00212812,109090.0,109080.0,1.6642529]
[1752073301754,0.00212812,109090.0,109080.0,1.6672529]
[1752073302616,0.00212812,109090.0,109080.0,0.9511614]
[1752073302817,0.00212812,109090.0,109080.0,1.0984014]
[1752073303035,0.00212812,109090.0,109080.0,1.1014014]
[1752073303260,0.00212812,109090.0,109080.0,1.5191129]
[1752073303468,0.00212812,109090.0,109080.0,1.1513014]
[1752073303690,0.00212812,109090.0,109080.0,1.5191129]
[1752073304110,0.60997552,109110.0,109100.0,0.55081473]
[1752073304311,0.63537552,109110.0,109100.0,0.9242248]
[1752073304549,0.62621071,109110.0,109100.0,0.9242248]
[1752073304751,0.62621063,109110.0,109100.0,0.9517628]
[1752073304959,0.81867677,109110.0,109100.0,0.9517628]
[1752073305486,0.62621063,109110.0,109100.0,0.9517628]
[1752073305701,0.81867669,109110.0,109100.0,0.9517628]
[1752073305896,0.85334166,109110.0,109100.0,0.79439749]
[1752073306100,0.82584817,109110.0,109100.0,0.641678]
[1752073306411,0.82584817,109110.0,109100.0,0.95478395]
[1752073306683,0.82584817,109110.0,109100.0,0.97311533]
[1752073306917,0.75253061,109110.0,109100.0,0.98228072]
[1752073307125,0.51832869,109110.0,109100.0,0.99244603]
[1752073307315,0.5091643,109110.0,109100.0,0.99244603]
[1752073307544,0.5,109110.0,109100.0,0.99244603]
[1752073307749,0.51832885,109110.0,109100.0,0.99244603]
[1752073308054,0.51832877,109110.0,109100.0,1.11142196]
[1752073308254,0.5091643,109110.0,109100.0,1.11142196]
[1752073308475,0.51832877,109110.0,109100.0,1.11142196]
[1752073308685,0.53665822,109110.0,109100.0,1.13885234]
[1752073308883,0.52749341,109110.0,109100.0,1.13885234]
[1752073309691,0.5091643,109110.0,109100.0,1.13885234]
[1752073310111,0.5,109110.0,109100.0,1.13885234]
[1752073310456,0.51832885,109110.0,109100.0,1.13885234]
[1752073310800,0.52749357,109110.0,109100.0,1.13885234]
[1752073311420,0.76009541,109110.0,109100.0,0.97236164]
[1752073311618,0.76009541,109110.0,109100.0,1.04401443]
[1752073311820,0.76009541,109110.0,109100.0,1.06127573]
[1752073312031,0.76009541,109110.0,109100.0,0.97236121]
[1752073312032,0.76926047,109110.0,109100.0,0.97236121]
[1752073312230,0.56762927,109110.0,109100.0,1.12960652]
[1752073312781,0.5584643,109110.0,109100.0,1.12960652]
[1752073312923,0.54352885,109110.0,109100.0,1.12960652]
[1752073313294,0.52749357,109110.0,109100.0,1.17790652]
[1752073313500,0.50916439,109110.0,109100.0,1.12960652]
[1752073313896,0.5,109110.0,109100.0,1.17900652]
[1752073314174,0.5,109110.0,109100.0,1.54681802]
[1752073315170,0.51832919,109110.0,109100.0,1.12960652]
[1752073315381,0.50916447,109110.0,109100.0,1.12960652]
[1752073315842,0.51832911,109110.0,109100.0,1.12960652]
[1752073316177,0.5,109110.0,109100.0,1.12960652]
[1752073319486,0.5,109110.0,109100.0,1.49177902]
[1752073319704,0.5,109110.0,109100.0,1.82941987]
[1752073319923,0.49082631,109110.0,109100.0,1.97941987]
[1752073320137,0.49082631,109110.0,109100.0,2.12941987]
[1752073320375,0.48165262,109110.0,109100.0,2.12941987]
[1752073320628,0.47247893,109110.0,109100.0,2.12941987]
[1752073320840,0.47247893,109110.0,109100.0,2.12841987]
[1752073321064,0.46330524,109110.0,109100.0,2.12841987]
[1752073321270,0.46330524,109110.0,109100.0,2.36241987]
[1752073321490,0.45413155,109110.0,109100.0,2.36241987]
[1752073321704,0.45413155,109110.0,109100.0,2.36041987]
[1752073321925,0.44495786,109110.0,109100.0,2.36341987]
[1752073322365,0.43578417,109110.0,109100.0,2.36341987]
[1752073322576,0.42661048,109110.0,109100.0,2.36141987]
[1752073322820,0.42661048,109110.0,109100.0,3.00787987]
[1752073323046,0.0054031,109140.0,109130.0,0.24739763]
[1752073323284,0.00554272,109140.0,109130.0,1.24384637]
[1752073323721,0.00554272,109140.0,109130.0,1.27137337]
[1752073323933,0.00554272,109140.0,109130.0,1.27778314]
[1752073324153,0.00554272,109140.0,109130.0,1.30118314]
[1752073324366,0.00554272,109140.0,109130.0,1.35011307]
[1752073324810,0.00554272,109140.0,109130.0,1.35011287]
[1752073326303,0.00554272,109140.0,109130.0,1.58011287]
[1752073327358,0.00754272,109140.0,109130.0,1.58011287]
[1752073327564,0.00754272,109140.0,109130.0,1.5567151]
[1752073327698,0.00754272,109140.0,109130.0,1.5802151]
[1752073328607,0.00754272,109140.0,109130.0,1.9202151]
[1752073329220,0.0002,109150.0,109140.0,0.86391975]
[1752073329460,0.0002,109150.0,109140.0,1.34880541]
[1752073329878,0.0002,109150.0,109140.0,1.32690541]
[1752073330692,0.0032,109150.0,109140.0,1.37802941]
[1752073331213,0.00452888,109160.0,109150.0,0.36998895]
[1752073331430,0.0054031,109170.0,109160.0,0.36069886]
[1752073331645,0.0054031,109170.0,109160.0,1.63504247]
[1752073331954,0.0054031,109170.0,109160.0,1.70283025]
[1752073332928,0.0054031,109170.0,109160.0,1.74623025]
[1752073333688,0.0054031,109170.0,109160.0,1.75383216]
[1752073333891,0.0054031,109170.0,109160.0,2.21308059]
[1752073334096,0.0002,109180.0,109170.0,0.34585035]
[1752073334315,0.00033959,109180.0,109170.0,1.20691396]
[1752073334738,0.00033959,109180.0,109170.0,0.83910246]
[1752073334941,0.00949802,109180.0,109170.0,0.81740246]
[1752073335316,0.00949802,109180.0,109170.0,1.27665089]
[1752073335529,0.00033959,109180.0,109170.0,1.30751613]
[1752073335974,0.00949802,109180.0,109170.0,1.30751613]
[1752073336188,0.01865653,109180.0,109170.0,1.30751613]
[1752073336397,0.00033959,109180.0,109170.0,1.30751613]
[1752073336818,0.00033959,109180.0,109170.0,0.93970463]
[1752073337021,0.00033959,109180.0,109170.0,1.30751613]
[1752073337264,0.00033959,109180.0,109170.0,1.30951613]
[1752073337468,0.00033959,109180.0,109170.0,1.24020463]
[1752073337642,0.00033959,109180.0,109170.0,1.60801613]
[1752073337992,0.00033959,109180.0,109170.0,1.63191613]
[1752073338241,0.00033959,109180.0,109170.0,1.65581613]
[1752073338616,0.00033959,109180.0,109170.0,1.99581613]
[1752073338817,0.0468,109200.0,109190.0,0.64957091]
[1752073339021,0.0468,109200.0,109190.0,1.1211241]
[1752073339230,0.0237,109200.0,109190.0,1.4889356]
[1752073339429,0.27356376,109210.0,109200.0,0.19230752]
[1752073339629,0.27356376,109210.0,109200.0,0.54391932]
[1752073339828,0.26440768,109210.0,109200.0,0.63535641]
[1752073340055,0.26440768,109210.0,109200.0,0.64451375]
[1752073340208,0.25525135,109210.0,109200.0,0.64451383]
[1752073340595,0.25525135,109210.0,109200.0,0.63535641]
[1752073340806,0.25525135,109210.0,109200.0,0.64451375]
[1752073341007,0.25525135,109210.0,109200.0,0.653671]
[1752073341221,0.25725084,109210.0,109200.0,0.662828]
[1752073341425,0.26640751,109210.0,109200.0,0.66282817]
[1752073342071,0.26640751,109210.0,109200.0,0.67198517]
[1752073342277,0.26640751,109210.0,109200.0,0.89282817]
[1752073342521,0.26640751,109210.0,109200.0,0.883671]
[1752073342721,0.25725135,109210.0,109200.0,0.653671]
[1752073342860,0.24809494,109210.0,109200.0,0.64451375]
[1752073343042,0.23893827,109210.0,109200.0,0.63535641]
[1752073343243,0.23893827,109210.0,109200.0,0.65367117]
[1752073343441,0.23893827,109210.0,109200.0,0.66282842]
[1752073343657,0.23893827,109210.0,109200.0,0.67198559]
[1752073344173,0.25725118,109210.0,109200.0,0.67198509]
[1752073344589,0.26440785,109210.0,109200.0,0.67198509]
[1752073344832,0.26440785,109210.0,109200.0,0.66282809]
[1752073345040,0.26540785,109210.0,109200.0,0.66282809]
[1752073345236,0.26840785,109210.0,109200.0,0.71175802]
[1752073345464,0.07611551,109210.0,109200.0,0.7117576]
[1752073345665,0.08527201,109210.0,109200.0,0.72091452]
[1752073345874,0.277562,109210.0,109200.0,0.7117576]
[1752073346090,0.277562,109210.0,109200.0,0.49197866]
[1752073346303,0.25924959,109210.0,109200.0,0.44512941]
[1752073346519,0.25624959,109210.0,109200.0,0.45428683]
[1752073346716,0.0568031,109210.0,109200.0,0.56403818]
[1752073347006,0.0082031,109210.0,109200.0,1.47240691]
[1752073347215,0.0082031,109210.0,109200.0,1.10459541]
[1752073347441,0.0082031,109210.0,109200.0,1.47240691]
[1752073347652,0.0072031,109210.0,109200.0,1.10459541]
[1752073347861,0.01435909,109210.0,109200.0,1.33559541]
[1752073348283,0.07071525,109210.0,109200.0,1.10359541]
[1752073348493,0.0052031,109210.0,109200.0,1.47140691]
[1752073348730,0.0052031,109210.0,109200.0,1.10359541]
[1752073348939,0.0052031,109210.0,109200.0,1.14373626]
[1752073349159,0.0052031,109210.0,109200.0,1.31763626]
[1752073349362,0.0052031,109210.0,109200.0,1.68544776]
[1752073349765,0.0052031,109210.0,109200.0,1.69318247]
[1752073350185,0.0052031,109210.0,109200.0,1.69218247]
[1752073350605,0.0052031,109210.0,109200.0,1.32635911]
[1752073350813,0.0052031,109210.0,109200.0,1.69617061]
[1752073351056,0.0052031,109210.0,109200.0,1.69417061]
[1752073351431,0.0052031,109210.0,109200.0,1.69717061]
[1752073351654,0.0052031,109210.0,109200.0,1.69517061]
[1752073352280,0.0052031,109210.0,109200.0,1.85517061]
[1752073352949,0.0052031,109210.0,109200.0,1.85817061]
[1752073353660,0.5052031,109210.0,109200.0,1.85817061]
[1752073354374,0.5052031,109210.0,109200.0,1.85821061]
[1752073354612,0.5052031,109210.0,109200.0,1.49027911]
[1752073355118,0.5052031,109210.0,109200.0,2.15659061]
[1752073355359,0.5052031,109210.0,109200.0,1.78877911]
[1752073355575,0.5052031,109210.0,109200.0,2.00923061]
[1752073355781,0.5052031,109210.0,109200.0,2.15659061]
[1752073356875,0.5052031,109210.0,109200.0,1.78877911]
[1752073357089,0.5052031,109210.0,109200.0,2.15659061]
[1752073357315,0.5052031,109210.0,109200.0,2.15019067]
[1752073357695,0.5052031,109210.0,109200.0,2.17769767]
[1752073357905,0.0220763,109210.0,109200.0,2.89550917]
[1752073358109,0.00432888,109230.0,109220.0,0.94457642]
[1752073358310,0.00479439,109230.0,109220.0,1.94108178]
[1752073358487,0.00479439,109230.0,109220.0,1.90852263]
[1752073358686,0.00479439,109230.0,109220.0,1.56821413]
[1752073359438,0.00479439,109230.0,109220.0,1.98392563]
[1752073361875,0.00479439,109230.0,109220.0,1.98492563]
[1752073362083,0.00479439,109230.0,109220.0,1.98496563]
[1752073362328,0.00479439,109230.0,109220.0,1.61715413]
[1752073362533,0.00479439,109230.0,109220.0,1.98496563]
[1752073362731,0.00479439,109230.0,109220.0,1.98696563]
[1752073363124,0.00479439,109230.0,109220.0,2.01417864]
[1752073363299,0.00479439,109230.0,109220.0,1.64636714]
[1752073363502,0.00479439,109230.0,109220.0,2.01417864]
[1752073364106,0.00479439,109230.0,109220.0,1.68846563]
[1752073364449,0.00479439,109230.0,109220.0,1.34786714]
[1752073364731,0.00479439,109230.0,109220.0,1.68846563]
[1752073366312,0.00479439,109230.0,109220.0,1.27263413]
[1752073366946,0.00479439,109230.0,109220.0,1.84050563]
[1752073368621,0.00479439,109230.0,109220.0,1.54050563]
[1752073371532,0.0152031,109240.0,109230.0,0.02746396]
[1752073371726,0.01534263,109240.0,109230.0,1.15821963]
[1752073371974,0.0061809,109240.0,109230.0,1.38202139]
[1752073372201,0.0061809,109240.0,109230.0,1.89983289]
[1752073372421,0.0497,109260.0,109250.0,1.06630018]
[1752073372605,0.04196575,109270.0,109260.0,0.3104694]
[1752073372606,0.08091462,109270.0,109260.0,0.3104694]
[1752073372840,0.08091462,109270.0,109260.0,0.54898633]
[1752073373052,0.09006592,109270.0,109260.0,0.54898633]
[1752073373274,0.09006642,109270.0,109260.0,0.64591626]
[1752073373459,0.08091495,109270.0,109260.0,0.64591626]
[1752073373875,0.05346146,109270.0,109260.0,0.64591626]
[1752073374087,0.05346146,109270.0,109260.0,0.73735319]
[1752073374246,0.05346146,109270.0,109260.0,1.10516469]
[1752073374654,0.05346146,109270.0,109260.0,0.73735319]
[1752073375282,0.05546146,109270.0,109260.0,0.73735319]
[1752073375489,0.2567965,109270.0,109260.0,0.28301298]
[1752073375709,0.26594797,109270.0,109260.0,0.88532744]
[1752073376110,0.08091512,109270.0,109260.0,0.9036313]
[1752073376399,0.09006667,109270.0,109260.0,0.9036313]
[1752073376655,0.27309952,109270.0,109260.0,0.97676437]
[1752073376841,0.27309952,109270.0,109260.0,0.98591643]
[1752073377032,0.27309952,109270.0,109260.0,0.9950684]
[1752073377234,0.27309952,109270.0,109260.0,0.8489884]
[1752073377411,0.27309952,109270.0,109260.0,0.9960284]
[1752073377614,0.26394855,109270.0,109260.0,0.97772437]
[1752073377816,0.24564586,109270.0,109260.0,0.34493331]
[1752073378318,0.23649431,109270.0,109260.0,0.35408579]
[1752073378899,0.23649431,109270.0,109260.0,0.53713539]
[1752073379350,0.23649431,109270.0,109260.0,0.35404579]
[1752073379549,0.23649431,109270.0,109260.0,0.34489331]
[1752073379765,0.23649431,109270.0,109260.0,0.35574545]
[1752073379971,0.23649431,109270.0,109260.0,0.40374545]
[1752073380208,0.23649431,109270.0,109260.0,0.58679505]
[1752073380408,0.23649431,109270.0,109260.0,0.59594753]
[1752073380608,0.23649431,109270.0,109260.0,0.34493331]
[1752073381245,0.23649431,109270.0,109260.0,0.19793331]
[1752073381471,0.60430581,109270.0,109260.0,0.00104]
[1752073382117,0.23649431,109270.0,109260.0,0.00104]
[1752073382985,0.33093124,109270.0,109260.0,0.00104]
[1752073383240,0.60730581,109270.0,109260.0,0.00104]
[1752073383475,0.69874274,109270.0,109260.0,0.00104]
[1752073384085,0.33093124,109270.0,109260.0,0.00104]
[1752073384832,0.38645431,109270.0,109260.0,0.23943902]
[1752073385032,0.39560553,109270.0,109260.0,0.30563474]
[1752073385266,0.38645431,109270.0,109260.0,0.29648243]
[1752073385489,0.84670274,109270.0,109260.0,0.00645949]
[1752073386126,0.47889124,109270.0,109260.0,0.00645949]
[1752073386365,0.38745431,109270.0,109260.0,0.05538942]
[1752073387716,0.75526581,109270.0,109260.0,0.00645949]
[1752073387948,0.47889124,109270.0,109260.0,0.00645949]
[1752073388180,0.93813967,109270.0,109260.0,0.00645949]
[1752073388643,0.93809967,109270.0,109260.0,0.00645949]
[1752073389065,0.60830581,109270.0,109260.0,0.00645949]
[1752073389278,0.38741431,109270.0,109260.0,0.05538942]
[1752073389898,0.24049431,109270.0,109260.0,0.23843902]
[1752073390098,0.38741431,109270.0,109260.0,0.23843902]
[1752073390547,0.24049431,109270.0,109260.0,0.2475915]
[1752073390801,0.24964578,109270.0,109260.0,0.3302944]
[1752073390992,0.74964578,109270.0,109260.0,0.3302944]
[1752073391167,0.74964578,109270.0,109260.0,0.33944662]
[1752073391573,0.74964578,109270.0,109260.0,0.26589603]
[1752073391831,0.74964578,109270.0,109260.0,0.2475915]
[1752073392064,0.76794855,109270.0,109260.0,0.323048]
[1752073392493,0.77710019,109270.0,109260.0,0.323048]
[1752073392709,0.77710019,109270.0,109260.0,0.383048]
[1752073392956,0.77710019,109270.0,109260.0,0.4625984]
[1752073394147,0.77710019,109270.0,109260.0,0.47175029]
[1752073394354,0.77710019,109270.0,109260.0,0.383048]
[1752073395585,0.59406734,109270.0,109260.0,0.383048]
[1752073395790,0.76794855,109270.0,109260.0,0.39219989]
[1752073395999,0.77710019,109270.0,109260.0,0.37389603]
[1752073396208,0.77710019,109270.0,109260.0,0.38304817]
[1752073396625,0.77710019,109270.0,109260.0,0.47083539]
[1752073396831,0.76794897,109270.0,109260.0,0.39220023]
[1752073397715,0.58491612,109270.0,109260.0,0.39219964]
[1752073397927,0.57576448,109270.0,109260.0,0.39219964]
[1752073398375,0.50936146,109270.0,109260.0,0.39219964]
[1752073398580,0.52766399,109270.0,109260.0,0.39219964]
[1752073398789,0.52766399,109270.0,109260.0,0.48363657]
[1752073399004,0.53681495,109270.0,109260.0,0.48363657]
[1752073399426,0.51851243,109270.0,109260.0,0.48363657]
[1752073399626,0.52766357,109270.0,109260.0,0.48363657]
[1752073399838,0.54596626,109270.0,109260.0,0.48363657]
[1752073400044,0.53681479,109270.0,109260.0,0.48363657]
[1752073400246,0.52766357,109270.0,109260.0,0.48363657]
[1752073400454,0.72899911,109270.0,109260.0,0.45618048]
[1752073400694,1.12151103,109270.0,109260.0,0.44702843]
[1752073401114,1.11235981,109270.0,109260.0,0.44702843]
[1752073401319,1.11235981,109270.0,109260.0,0.25482635]
[1752073401522,0.76019733,109270.0,109260.0,0.4561804]
[1752073402005,0.76019733,109270.0,109260.0,0.46533237]
[1752073402254,0.52766357,109270.0,109260.0,0.47448426]
[1752073403089,0.50936146,109270.0,109260.0,1.31881012]
[1752073403295,0.51851243,109270.0,109260.0,0.96664764]
[1752073403713,0.53681478,109270.0,109260.0,0.96664764]
[1752073403929,0.52666348,109270.0,109260.0,0.94054764]
[1752073404171,0.53581462,109270.0,109260.0,0.94054764]
[1752073404386,0.52666348,109270.0,109260.0,0.94054764]
[1752073404612,0.50836146,109270.0,109260.0,0.94054764]
[1752073404829,0.50836146,109270.0,109260.0,1.31751012]
[1752073405070,0.50836146,109270.0,109260.0,0.96534764]
[1752073405274,0.50536146,109270.0,109260.0,0.96534764]
[1752073405771,0.50636146,109270.0,109260.0,0.96534764]
[1752073405946,0.51551234,109270.0,109260.0,0.96534764]
[1752073406176,0.50636146,109270.0,109260.0,0.96534764]
[1752073406519,0.50636146,109270.0,109260.0,1.58808611]
[1752073406748,0.49777419,109270.0,109260.0,1.58808611]
[1752073406952,0.49348074,109270.0,109260.0,1.58808611]
[1752073407546,0.49348074,109270.0,109260.0,1.67036801]
[1752073407757,0.49348074,109270.0,109260.0,1.67136801]
[1752073408135,0.49248074,109270.0,109260.0,1.67136801]
[1752073408389,0.49248074,109270.0,109260.0,1.67236801]
[1752073409321,0.49248074,109270.0,109260.0,1.30561062]
[1752073409523,0.49248074,109270.0,109260.0,1.67237131]
[1752073410267,0.49248074,109270.0,109260.0,1.59008941]
[1752073410700,0.49248074,109270.0,109260.0,1.67237131]
[1752073411469,0.49248074,109270.0,109260.0,1.66594852]
[1752073412579,0.49248074,109270.0,109260.0,1.44918783]
[1752073412806,0.49248074,109270.0,109260.0,1.81594852]
[1752073413900,0.49248074,109270.0,109260.0,1.82236521]
[1752073414075,0.49248074,109270.0,109260.0,1.84989157]
[1752073414285,0.49248074,109270.0,109260.0,1.48313088]
[1752073414523,0.49248074,109270.0,109260.0,1.99657157]
[1752073414833,0.49248074,109270.0,109260.0,2.29507157]
[1752073417441,0.49248074,109270.0,109260.0,2.32256257]
[1752073418365,0.49248074,109270.0,109260.0,1.57738257]
[1752073418566,0.49248074,109270.0,109260.0,1.72402257]
[1752073420323,0.49248074,109270.0,109260.0,1.61421431]
[1752073420979,0.49248074,109270.0,109260.0,1.02801362]
[1752073421438,0.49248074,109270.0,109260.0,1.51527431]
[1752073421672,0.49248074,109270.0,109260.0,0.61847669]
[1752073421892,0.49248074,109270.0,109260.0,0.80512976]
[1752073422139,0.49248074,109270.0,109260.0,1.14512976]
[1752073422617,0.50163171,109270.0,109260.0,1.09712976]
[1752073422854,0.49248074,109270.0,109260.0,1.14512976]
[1752073423070,0.49248074,109270.0,109260.0,1.23656669]
[1752073423553,0.49248074,109270.0,109260.0,1.25110754]
[1752073423789,0.49248074,109270.0,109260.0,1.66806823]
[1752073424745,0.49248074,109270.0,109260.0,1.66806579]
[1752073425193,0.49248074,109270.0,109260.0,1.81806579]
[1752073425415,0.49248074,109270.0,109260.0,2.1551363]
[1752073426236,0.49248074,109270.0,109260.0,1.46841172]
[1752073426439,0.49248074,109270.0,109260.0,2.17224292]
[1752073427388,0.49248074,109270.0,109260.0,2.09016083]
[1752073428195,0.49248074,109270.0,109260.0,1.38632963]
[1752073428429,0.49248074,109270.0,109260.0,2.09016083]
[1752073429130,0.49248074,109270.0,109260.0,2.17231535]
[1752073429344,0.49248074,109270.0,109260.0,2.47081535]
[1752073429558,0.49248074,109270.0,109260.0,2.38866083]
[1752073429760,0.49248074,109270.0,109260.0,2.47082691]
[1752073430409,0.49248074,109270.0,109260.0,1.76699953]
[1752073430634,0.49248074,109270.0,109260.0,2.11891513]
[1752073430878,0.49248074,109270.0,109260.0,2.47083073]
[1752073431501,0.49248074,109270.0,109260.0,1.96891513]
[1752073431647,0.49248074,109270.0,109260.0,1.82231513]
[1752073431867,0.49248074,109270.0,109260.0,1.96879513]
[1752073432061,0.49248074,109270.0,109260.0,2.32071073]
[1752073432260,0.49248074,109270.0,109260.0,2.23854465]
[1752073433064,0.49248074,109270.0,109260.0,2.34835291]
[1752073433065,0.48174747,109270.0,109260.0,2.34835291]
[1752073433941,0.48174747,109270.0,109260.0,2.34735291]
[1752073434571,0.48174747,109270.0,109260.0,2.34635291]
[1752073434772,0.47814747,109270.0,109260.0,2.34835291]
[1752073434973,0.46544747,109270.0,109260.0,2.34835291]
[1752073435592,0.46544747,109270.0,109260.0,2.35035291]
[1752073435999,0.46544747,109270.0,109260.0,2.37784191]
[1752073436226,0.46544747,109270.0,109260.0,2.37785119]
[1752073438385,0.46544747,109270.0,109260.0,2.07935119]
[1752073440443,0.46544747,109270.0,109260.0,1.96954293]
[1752073440654,0.46544747,109270.0,109260.0,1.96954542]
[1752073440874,0.46544747,109270.0,109260.0,2.07929322]
[1752073441108,0.46544747,109270.0,109260.0,2.07286055]
[1752073441421,0.46544747,109270.0,109260.0,2.02914112]
[1752073441624,0.45056454,109270.0,109260.0,2.02914112]
[1752073443090,0.45056454,109270.0,109260.0,1.94479332]
[1752073443091,0.44412481,109270.0,109260.0,1.94479332]
[1752073443293,0.44412481,109270.0,109260.0,1.91939332]
[1752073443735,0.44412481,109270.0,109260.0,1.94589332]
[1752073444159,0.10206,109290.0,109280.0,0.65931303]
[1752073444366,0.09304098,109290.0,109280.0,1.83051306]
[1752073444575,0.09304098,109290.0,109280.0,1.45209746]
[1752073444787,0.08388248,109290.0,109280.0,1.56193481]
[1752073444994,0.08388248,109290.0,109280.0,1.43065353]
[1752073445218,0.08388248,109290.0,109280.0,1.56193481]
[1752073445219,0.07472398,109290.0,109280.0,1.56193481]
[1752073445671,0.06556612,109290.0,109280.0,1.56193481]
[1752073446097,0.05640826,109290.0,109280.0,1.56193481]
[1752073446519,0.0472504,109290.0,109280.0,1.56293481]
[1752073446724,0.0472504,109290.0,109280.0,1.56393481]
[1752073446928,0.03809254,109290.0,109280.0,1.56393481]
[1752073447341,0.02893468,109290.0,109280.0,1.56393481]
[1752073447548,0.02893468,109290.0,109280.0,1.59123257]
[1752073447747,0.01977682,109290.0,109280.0,1.59127257]
[1752073447970,0.01061896,109290.0,109280.0,1.48143522]
[1752073448126,0.06135896,109290.0,109280.0,1.48143522]
[1752073448323,0.0522011,109290.0,109280.0,1.48143522]
[1752073448863,0.04304324,109290.0,109280.0,1.48139522]
[1752073449101,0.04304324,109290.0,109280.0,1.33507522]
[1752073449302,0.04304324,109290.0,109280.0,1.49593607]
[1752073449303,0.03388538,109290.0,109280.0,1.49593607]
[1752073449713,0.02472752,109290.0,109280.0,1.49593607]
[1752073449946,0.02472752,109290.0,109280.0,1.79443607]
[1752073450186,0.01556966,109290.0,109280.0,1.79443607]
[1752073450396,0.02262604,109300.0,109290.0,0.21044824]
[1752073450601,0.02271108,109300.0,109290.0,1.0501358]
[1752073450802,0.03185987,109300.0,109290.0,1.0501358]
[1752073451006,0.02271108,109300.0,109290.0,1.0501358]
[1752073451256,0.03185987,109300.0,109290.0,1.0501358]
[1752073451459,0.03185987,109300.0,109290.0,1.05815557]
[1752073452101,0.04100874,109300.0,109290.0,1.05815557]
[1752073452310,0.04100874,109300.0,109290.0,0.70623997]
[1752073452515,0.03185987,109300.0,109290.0,0.70623997]
[1752073452731,0.05635987,109300.0,109290.0,0.9038158]
[1752073452951,0.04721108,109300.0,109290.0,1.0500958]
[1752073453158,0.06550875,109300.0,109290.0,1.0500958]
[1752073453365,0.05635979,109300.0,109290.0,1.0501358]
[1752073453569,0.09060866,109300.0,109290.0,1.05812143]
[1752073454210,0.09060866,109300.0,109290.0,1.0501358]
[1752073454422,0.08145979,109300.0,109290.0,1.0501358]
[1752073454631,0.09060866,109300.0,109290.0,1.1301358]
[1752073455256,0.28274031,109300.0,109290.0,1.13009588]
[1752073455444,0.09060916,109300.0,109290.0,1.13008486]
[1752073455590,0.09060916,109300.0,109290.0,1.13923424]
[1752073455798,0.2827409,109300.0,109290.0,1.13923424]
[1752073456001,0.09060908,109300.0,109290.0,1.13923424]
[1752073456366,0.07231125,109300.0,109290.0,1.14724213]
[1752073456569,0.08146012,109300.0,109290.0,1.13923424]
[1752073456988,0.09060908,109300.0,109290.0,0.78731864]
[1752073457195,0.09060908,109300.0,109290.0,1.13923424]
[1752073457401,0.08146012,109300.0,109290.0,1.13923424]
[1752073457618,0.09060908,109300.0,109290.0,1.13923424]
[1752073458039,0.28274073,109300.0,109290.0,0.78731864]
[1752073458247,0.07231125,109300.0,109290.0,1.13923424]